fUST/lending_fUST_20250614
["ID","MTS","AMOUNT","RATE_DAILY","PERIOD"]
[365755745,1749882536943,-285.71884388,0.00021094,2]
[365755746,1749882536966,-416.04024435,0.00021094,2]
[365755747,1749882536987,-390.26681816,0.00021095,4]
[365755748,1749882537009,-459.41610288,0.00021095,4]
[365755749,1749882537030,-438.12037596,0.00021095,4]
[365755750,1749882537050,-484.5678277,0.00021095,4]
[365755751,1749882537071,-451.48638569,0.00021095,4]
[365755752,1749882537098,-430.0,0.00021095,4]
[365755753,1749882537119,-453.23262905,0.00021095,4]
[365755754,1749882537139,-449.59523121,0.00021095,4]
[365755755,1749882537163,-413.02148771,0.00021095,4]
[365755756,1749882537184,-460.0,0.00021095,4]
[365755757,1749882537205,-430.0,0.00021095,4]
[365755758,1749882537226,-430.0,0.00021095,4]
[365755759,1749882537247,-424.87500809,0.00021095,4]
[365755760,1749882537268,-454.83665767,0.00021095,4]
[365755761,1749882537289,-460.0,0.00021095,4]
[365755762,1749882537310,-411.12322929,0.00021095,4]
[365755763,1749882537331,-421.72134209,0.00021095,4]
[365755764,1749882537351,-412.97171181,0.00021095,4]
[365755765,1749882537371,-430.0,0.00021095,4]
[365755766,1749882537392,-456.18302326,0.00021095,4]
[365755767,1749882537411,-461.81337477,0.00021095,4]
[365755768,1749882537432,-460.0,0.00021095,4]
[365755769,1749882537454,-420.0,0.00021095,4]
[365755770,1749882537474,-460.0,0.00021095,4]
[365755771,1749882537494,-430.0,0.00021095,4]
[365755772,1749882537515,-323.56028925,0.00021095,4]
[365755776,1749882553122,-2065.203,0.00020883,2]
[365755785,1749882594074,1854.62,0.00020248,2]
[365755786,1749882596427,172.94037767,0.00020216,2]
[365755787,1749882596449,854.29110623,0.00020216,2]
[365755812,1749882632052,-2934.797,0.00020883,2]
[365755814,1749882632062,-383.06113636,0.00020994,2]
[365755816,1749882632071,-300.0,0.00021094,2]
[365755818,1749882632080,-691.0,0.00021094,2]
[365755820,1749882632089,-138.15845201,0.00021095,4]
[365755822,1749882632098,-57.60769192,0.00021095,4]
[365755823,1749882632167,-372.39230808,0.00021095,4]
[365755824,1749882632177,-448.78779347,0.00021095,4]
[365755825,1749882632186,-412.14937693,0.00021095,4]
[365755826,1749882632196,-430.0,0.00021095,2]
[365755827,1749882632205,-433.77,0.00021095,4]
[365755828,1749882632214,-460.0,0.00021095,4]
[365755829,1749882632224,-433.55950465,0.00021095,4]
[365755830,1749882632233,-444.10087433,0.00021095,4]
[365755831,1749882632242,-402.7727925,0.00021095,4]
[365755832,1749882632251,-460.0,0.00021095,4]
[365755833,1749882632262,-412.02850224,0.00021095,4]
[365755835,1749882632272,-430.0,0.00021095,4]
[365755837,1749882632281,-415.658811,0.00021095,4]
[365755839,1749882632291,-430.0,0.00021095,4]
[365755841,1749882632300,-460.0,0.00021095,4]
[365755843,1749882632310,-430.0,0.00021095,4]
[365755844,1749882632320,-460.0,0.00021095,4]
[365755845,1749882632329,-460.0,0.00021095,4]
[365755846,1749882632340,-460.0,0.00021095,4]
[365755847,1749882632349,-442.15745603,0.00021095,4]
[365755848,1749882632359,-442.01924624,0.00021095,4]
[365755849,1749882632368,-430.0,0.00021095,4]
[365755850,1749882632377,-430.0,0.00021095,4]
[365755851,1749882632387,-460.0,0.00021095,4]
[365755852,1749882632397,-451.7312001,0.00021095,4]
[365755853,1749882632406,-460.0,0.00021095,4]
[365755854,1749882632417,-469.08020244,0.00021095,4]
[365755855,1749882632426,-460.0,0.00021095,4]
[365755856,1749882632435,-460.0,0.00021095,4]
[365755857,1749882632444,-414.64797292,0.00021095,4]
[365755858,1749882632453,-372.00425119,0.00021095,4]
[365755859,1749882632462,-447.4127221,0.00021095,4]
[365755860,1749882632472,-430.0,0.00021095,4]
[365755861,1749882632481,-290.63884412,0.00021095,4]
[365755862,1749882632490,-460.0,0.00021095,4]
[365755863,1749882632498,-430.0,0.00021095,4]
[365755864,1749882632507,-280.0,0.00021095,4]
[365755865,1749882632516,-430.0,0.00021095,4]
[365755866,1749882632525,-460.0,0.00021095,4]
[365755867,1749882632534,-430.0,0.00021095,4]
[365755868,1749882632543,-408.14195522,0.00021095,4]
[365755869,1749882632552,-460.0,0.00021095,4]
[365755870,1749882632562,-166.6410457,0.00021095,4]
[365755871,1749882632571,-430.0,0.00021095,4]
[365755872,1749882632580,-460.0,0.00021095,4]
[365755873,1749882632589,-497.13869693,0.00021095,4]
[365755874,1749882632598,-460.0,0.00021095,4]
[365755875,1749882632752,-460.0,0.00021095,4]
[365755876,1749882632766,-360.95113158,0.00021095,4]
[365755877,1749882632776,-460.0,0.00021095,4]
[365755878,1749882632785,-460.0,0.00021095,4]
[365755879,1749882632795,-430.0,0.00021095,4]
[365755880,1749882632805,-460.0,0.00021095,4]
[365755881,1749882632815,-316.17725696,0.00021095,4]
[365755882,1749882632827,-430.0,0.00021095,4]
[365755883,1749882632837,-347.12698007,0.00021095,4]
[365755884,1749882632846,-409.49654014,0.00021095,4]
[365755885,1749882632855,-460.0,0.00021095,4]
[365755886,1749882632865,-460.0,0.00021095,4]
[365755887,1749882632875,-334.01460011,0.00021095,4]
[365755888,1749882632884,-467.13782091,0.00021095,4]
[365755889,1749882632893,-403.74443085,0.00021095,4]
[365755890,1749882632903,-444.40049639,0.00021095,4]
[365755891,1749882632912,-430.0,0.00021095,4]
[365755892,1749882632921,-430.0,0.00021095,4]
[365755893,1749882632931,-460.0,0.00021095,4]
[365755894,1749882632940,-430.0,0.00021095,4]
[365755895,1749882632951,-432.09098518,0.00021095,4]
[365755896,1749882632960,-430.0,0.00021095,4]
[365755897,1749882632970,-453.69908247,0.00021095,4]
[365755898,1749882632979,-430.0,0.00021095,4]
[365755899,1749882632989,-430.0,0.00021095,4]
[365755900,1749882632998,-345.30734373,0.00021095,4]
[365755901,1749882633008,-324.51326619,0.00021095,4]
[365755902,1749882633018,-460.0,0.00021095,4]
[365755903,1749882633028,-430.0,0.00021095,4]
[365755904,1749882633037,-445.42517723,0.00021095,4]
[365755905,1749882633046,-503.47987014,0.00021095,4]
[365755906,1749882633055,-460.0,0.00021095,4]
[365755907,1749882633064,-460.0,0.00021095,4]
[365755908,1749882633073,-450.86177483,0.00021095,4]
[365755909,1749882633082,-207.2516467,0.00021095,4]
[365755910,1749882633091,-433.50564133,0.00021095,4]
[365755911,1749882633101,-409.54682402,0.00021095,4]
[365755912,1749882633109,-411.56354347,0.00021095,4]
[365755913,1749882633119,-460.0,0.00021095,4]
[365755914,1749882633128,-431.27564508,0.00021095,4]
[365755915,1749882633137,-430.0,0.00021095,4]
[365755916,1749882633146,-460.0,0.00021095,4]
[365755917,1749882633155,-460.0,0.00021095,4]
[365755918,1749882633164,-460.0,0.00021095,4]
[365755919,1749882633173,-374.90971732,0.00021095,4]
[365755920,1749882633183,-366.80805089,0.00021095,4]
[365755921,1749882633192,-460.0,0.00021095,4]
[365755922,1749882633203,-460.0,0.00021095,4]
[365755923,1749882633212,-460.0,0.00021095,4]
[365755924,1749882633221,-325.20686427,0.00021095,4]
[365755925,1749882633230,-460.0,0.00021095,4]
[365755926,1749882633240,-436.38089455,0.00021095,4]
[365755927,1749882633249,-460.0,0.00021095,4]
[365755928,1749882633258,-413.40475317,0.00021095,4]
[365755929,1749882633271,-367.38960875,0.00021095,4]
[365755930,1749882633280,-460.0,0.00021095,4]
[365755931,1749882633289,-452.52206794,0.00021095,4]
[365755932,1749882633298,-452.14384119,0.00021095,4]
[365755933,1749882633308,-460.0,0.00021095,4]
[365755934,1749882633317,-430.0,0.00021095,4]
[365755935,1749882633326,-460.0,0.00021095,4]
[365755936,1749882633335,-460.0,0.00021095,4]
[365755937,1749882633344,-460.0,0.00021095,4]
[365755938,1749882633354,-410.97877799,0.00021095,4]
[365755939,1749882633363,-449.63501287,0.00021095,4]
[365755940,1749882633373,-330.70590416,0.00021095,4]
[365755941,1749882633382,-460.0,0.00021095,4]
[365755942,1749882633391,-408.90497436,0.00021095,4]
[365755943,1749882633401,-460.0,0.00021095,4]
[365755944,1749882633410,-312.88741579,0.00021095,4]
[365755945,1749882633419,-460.0,0.00021095,4]
[365755946,1749882633429,-460.0,0.00021095,4]
[365755947,1749882633438,-421.48404406,0.00021095,4]
[365755948,1749882633448,-460.0,0.00021095,4]
[365755949,1749882633457,-460.0,0.00021095,4]
[365755950,1749882633467,-460.0,0.00021095,4]
[365755951,1749882633476,-460.0,0.00021095,4]
[365755952,1749882633493,-347.90827877,0.00021095,4]
[365755953,1749882633502,-460.0,0.00021095,4]
[365755954,1749882633511,-460.0,0.00021095,4]
[365755955,1749882633521,-499.25692587,0.00021095,4]
[365755956,1749882633530,-435.32756588,0.00021095,4]
[365755957,1749882633540,-460.0,0.00021095,4]
[365755958,1749882633550,-460.0,0.00021095,4]
[365755959,1749882633559,-407.36378751,0.00021095,4]
[365755960,1749882633569,-460.0,0.00021095,4]
[365755961,1749882633578,-417.40424984,0.00021095,4]
[365755962,1749882633588,-460.0,0.00021095,4]
[365755963,1749882633597,-460.0,0.00021095,4]
[365755964,1749882633605,-460.0,0.00021095,4]
[365755965,1749882633616,-460.0,0.00021095,4]
[365755966,1749882633626,-500.0,0.00021095,4]
[365755967,1749882633636,-572.45554073,0.00021095,4]
[365755968,1749882633645,-460.0,0.00021095,4]
[365755969,1749882633655,-460.0,0.00021095,4]
[365755970,1749882633664,-200.18887765,0.00021095,4]
[365755971,1749882633674,-460.0,0.00021095,4]
[365755972,1749882633683,-460.0,0.00021095,4]
[365755973,1749882633693,-391.01023349,0.00021095,4]
[365755974,1749882633703,-460.0,0.00021095,4]
[365755975,1749882633712,-460.0,0.00021095,4]
[365755976,1749882633722,-460.0,0.00021095,4]
[365755977,1749882633731,-460.0,0.00021095,4]
[365755978,1749882633747,-460.0,0.00021095,4]
[365755979,1749882633761,-460.0,0.00021095,4]
[365755980,1749882633771,-422.48635995,0.00021095,4]
[365755981,1749882633781,-394.64074395,0.00021095,4]
[365755982,1749882633791,-460.0,0.00021095,4]
[365755983,1749882633800,-460.0,0.00021095,4]
[365755984,1749882633809,-460.0,0.00021095,4]
[365755985,1749882633819,-405.00323565,0.00021095,4]
[365755986,1749882633828,-451.03934497,0.00021095,4]
[365755987,1749882633837,-460.0,0.00021095,4]
[365755988,1749882633847,-460.0,0.00021095,4]
[365755989,1749882633856,-460.0,0.00021095,4]
[365755990,1749882633866,-460.0,0.00021095,4]
[365755991,1749882633875,-460.0,0.00021095,4]
[365755992,1749882633884,-460.0,0.00021095,4]
[365755993,1749882633894,-460.0,0.00021095,4]
[365755994,1749882633903,-460.0,0.00021095,4]
[365755995,1749882633912,-460.0,0.00021095,4]
[365755996,1749882633922,-460.0,0.00021095,4]
[365755997,1749882633931,-460.0,0.00021095,4]
[365755998,1749882633940,-537.84059936,0.00021095,4]
[365755999,1749882633949,-460.0,0.00021095,4]
[365756000,1749882633959,-460.0,0.00021095,4]
[365756001,1749882633968,-460.0,0.00021095,4]
[365756002,1749882633976,-460.0,0.00021095,4]
[365756003,1749882633986,-460.0,0.00021095,4]
[365756004,1749882633995,-460.0,0.00021095,4]
[365756005,1749882634004,-460.0,0.00021095,4]
[365756006,1749882634013,-460.0,0.00021095,4]
[365756007,1749882634023,-460.0,0.00021095,4]
[365756008,1749882634032,-460.0,0.00021095,4]
[365756009,1749882634041,-460.0,0.00021095,4]
[365756010,1749882634050,-433.04516197,0.00021095,4]
[365756011,1749882634059,-447.17898123,0.00021095,4]
[365756012,1749882634068,-460.0,0.00021095,4]
[365756013,1749882634077,-433.52361397,0.00021095,4]
[365756014,1749882634086,-308.53450458,0.00021095,4]
[365756015,1749882634095,-431.6690431,0.00021095,4]
[365756016,1749882634104,-546.78371582,0.00021095,4]
[365756017,1749882634113,-460.0,0.00021095,4]
[365756018,1749882634124,-273.35407438,0.00021095,4]
[365756019,1749882634133,-460.0,0.00021095,4]
[365756020,1749882634142,-460.0,0.00021095,4]
[365756021,1749882634152,-460.0,0.00021095,4]
[365756022,1749882634161,-460.0,0.00021095,4]
[365756023,1749882634170,-200.97508311,0.00021095,4]
[365756024,1749882634179,-460.0,0.00021095,4]
[365756025,1749882634188,-460.0,0.00021095,4]
[365756026,1749882634197,-460.0,0.00021095,4]
[365756027,1749882634206,-441.10716841,0.00021095,4]
[365756028,1749882634216,-460.0,0.00021095,4]
[365756029,1749882634225,-431.6,0.00021095,4]
[365756030,1749882634234,-460.0,0.00021095,4]
[365756031,1749882634244,-460.0,0.00021095,4]
[365756032,1749882634253,-428.88437189,0.00021095,4]
[365756033,1749882634263,-460.0,0.00021095,4]
[365756034,1749882634273,-460.0,0.00021095,4]
[365756035,1749882634281,-460.0,0.00021095,4]
[365756036,1749882634289,-460.0,0.00021095,4]
[365756037,1749882634298,-421.7421531,0.00021095,4]
[365756038,1749882634308,-460.0,0.00021095,4]
[365756039,1749882634317,-438.77161184,0.00021095,4]
[365756040,1749882634325,-500.0,0.00021095,4]
[365756041,1749882634334,-460.0,0.00021095,4]
[365756042,1749882634344,-460.0,0.00021095,4]
[365756043,1749882634354,-460.0,0.00021095,4]
[365756044,1749882634362,-430.0,0.00021095,4]
[365756045,1749882634371,-460.0,0.00021095,4]
[365756046,1749882634380,-460.0,0.00021095,4]
[365756047,1749882634389,-433.46974533,0.00021095,4]
[365756048,1749882634398,-460.0,0.00021095,4]
[365756049,1749882634407,-460.0,0.00021095,4]
[365756050,1749882634417,-460.0,0.00021095,4]
[365756051,1749882634426,-460.0,0.00021095,4]
[365756052,1749882634435,-460.0,0.00021095,4]
[365756053,1749882634444,-460.0,0.00021095,4]
[365756054,1749882634453,-449.17161289,0.00021095,4]
[365756055,1749882634462,-460.0,0.00021095,4]
[365756056,1749882634471,-460.0,0.00021095,4]
[365756057,1749882634481,-463.73076138,0.00021095,4]
[365756058,1749882634490,-460.0,0.00021095,4]
[365756059,1749882634499,-460.0,0.00021095,4]
[365756060,1749882634509,-460.0,0.00021095,4]
[365756061,1749882634518,-460.0,0.00021095,4]
[365756062,1749882634527,-460.0,0.00021095,4]
[365756063,1749882634536,-460.0,0.00021095,4]
[365756064,1749882634546,-460.0,0.00021095,4]
[365756065,1749882634555,-430.0,0.00021095,4]
[365756066,1749882634564,-460.0,0.00021095,4]
[365756067,1749882634574,-460.0,0.00021095,4]
[365756068,1749882634584,-412.67648568,0.00021095,4]
[365756069,1749882634593,-460.0,0.00021095,4]
[365756070,1749882634602,-460.0,0.00021095,4]
[365756071,1749882634611,-460.0,0.00021095,4]
[365756072,1749882634620,-460.0,0.00021095,4]
[365756073,1749882634630,-460.0,0.00021095,4]
[365756074,1749882634639,-460.0,0.00021095,4]
[365756075,1749882634649,-460.0,0.00021095,4]
[365756076,1749882634659,-460.0,0.00021095,4]
[365756077,1749882634668,-460.0,0.00021095,4]
[365756078,1749882634677,-453.44643299,0.00021095,4]
[365756079,1749882634687,-415.67842174,0.00021095,4]
[365756080,1749882634696,-430.0,0.00021095,4]
[365756081,1749882634706,-418.5739072,0.00021095,4]
[365756082,1749882634715,-414.23756054,0.00021095,4]
[365756083,1749882634725,-445.78870202,0.00021095,4]
[365756084,1749882634734,-500.0,0.00021095,4]
[365756085,1749882634748,-415.06451346,0.00021095,4]
[365756086,1749882634758,-430.0,0.00021095,4]
[365756087,1749882634767,-425.63926587,0.00021095,4]
[365756088,1749882634777,-460.0,0.00021095,4]
[365756089,1749882634787,-460.0,0.00021095,4]
[365756090,1749882634796,-460.0,0.00021095,4]
[365756091,1749882634805,-460.0,0.00021095,4]
[365756092,1749882634815,-460.0,0.00021095,4]
[365756093,1749882634824,-460.0,0.00021095,4]
[365756094,1749882634833,-419.00329191,0.00021095,4]
[365756095,1749882634842,-247.90608245,0.00021095,4]
[365756096,1749882634851,-448.88724819,0.00021095,4]
[365756097,1749882634860,-474.47596293,0.00021095,4]
[365756098,1749882634873,-517.3071591,0.00021095,4]
[365756099,1749882634882,-460.0,0.00021095,4]
[365756100,1749882634892,-430.0,0.00021095,4]
[365756101,1749882634902,-425.55803299,0.00021095,4]
[365756102,1749882634911,-460.0,0.00021095,4]
[365756103,1749882634920,-414.89088616,0.00021095,4]
[365756104,1749882634929,-430.0,0.00021095,4]
[365756105,1749882634939,-222.3,0.00021095,4]
[365756106,1749882634948,-176.44515258,0.00021095,4]
[365756107,1749882634957,-430.0,0.00021095,4]
[365756108,1749882634965,-460.0,0.00021095,4]
[365756109,1749882634974,-460.0,0.00021095,4]
[365756110,1749882634983,-533.43,0.00021095,4]
[365756111,1749882634992,-460.0,0.00021095,4]
[365756112,1749882635001,-412.15048422,0.00021095,4]
[365756113,1749882635010,-442.2679744,0.00021095,4]
[365756114,1749882635019,-416.15611587,0.00021095,4]
[365756115,1749882635029,-460.0,0.00021095,4]
[365756116,1749882635040,-440.0,0.00021095,4]
[365756117,1749882635050,-500.0,0.00021095,4]
[365756118,1749882635060,-500.0,0.00021095,4]
[365756119,1749882635068,-500.0,0.00021095,4]
[365756120,1749882635077,-500.0,0.00021095,4]
[365756121,1749882635086,-500.0,0.00021095,4]
[365756122,1749882635095,-500.0,0.00021095,4]
[365756123,1749882635104,-500.0,0.00021095,4]
[365756124,1749882635114,-440.0,0.00021095,4]
[365756125,1749882635123,-500.0,0.00021095,4]
[365756126,1749882635132,-500.0,0.00021095,4]
[365756127,1749882635141,-460.0,0.00021095,4]
[365756128,1749882635150,-460.0,0.00021095,4]
[365756129,1749882635160,-411.27567292,0.00021095,4]
[365756130,1749882635173,-460.0,0.00021095,4]
[365756131,1749882635182,-460.0,0.00021095,4]
[365756132,1749882635191,-400.0,0.00021095,4]
[365756133,1749882635200,-460.0,0.00021095,4]
[365756134,1749882635209,-460.0,0.00021095,4]
[365756135,1749882635218,-460.0,0.00021095,4]
[365756136,1749882635227,-460.0,0.00021095,4]
[365756137,1749882635236,-460.0,0.00021095,4]
[365756138,1749882635245,-442.43467982,0.00021095,4]
[365756139,1749882635253,-460.0,0.00021095,4]
[365756140,1749882635264,-442.18629898,0.00021095,4]
[365756141,1749882635273,-406.75155292,0.00021095,4]
[365756142,1749882635371,-460.0,0.00021095,4]
[365756143,1749882635399,-460.73297825,0.00021095,4]
[365756144,1749882635409,-461.29874158,0.00021095,4]
[365756145,1749882635419,-400.0,0.00021095,4]
[365756146,1749882635430,-460.0,0.00021095,4]
[365756147,1749882635439,-460.0,0.00021095,4]
[365756148,1749882635449,-460.0,0.00021095,4]
[365756149,1749882635458,-347.86687097,0.00021095,4]
[365756150,1749882635472,-588.09361166,0.00021095,4]
[365756151,1749882635484,-460.0,0.00021095,4]
[365756152,1749882635493,-460.0,0.00021095,4]
[365756153,1749882635503,-460.0,0.00021095,4]
[365756154,1749882635514,-460.0,0.00021095,4]
[365756155,1749882635523,-411.91153829,0.00021095,4]
[365756156,1749882635534,-460.0,0.00021095,4]
[365756157,1749882635543,-460.0,0.00021095,4]
[365756158,1749882635552,-445.45143817,0.00021095,4]
[365756159,1749882635561,-460.0,0.00021095,4]
[365756160,1749882635570,-460.0,0.00021095,4]
[365756161,1749882635578,-496.96284955,0.00021095,4]
[365756162,1749882635588,-460.0,0.00021095,4]
[365756163,1749882635597,-460.0,0.00021095,4]
[365756164,1749882635606,-460.0,0.00021095,4]
[365756165,1749882635615,-335.40520717,0.00021095,4]
[365756166,1749882635625,-438.14825124,0.00021095,4]
[365756167,1749882635634,-570.02109332,0.00021095,4]
[365756168,1749882635643,-460.0,0.00021095,4]
[365756169,1749882635653,-460.0,0.00021095,4]
[365756170,1749882635662,-430.0,0.00021095,4]
[365756171,1749882635671,-356.66816649,0.00021095,4]
[365756172,1749882635680,-460.0,0.00021095,4]
[365756173,1749882635689,-460.0,0.00021095,4]
[365756174,1749882635699,-460.0,0.00021095,4]
[365756175,1749882635709,-386.57169084,0.00021095,4]
[365756176,1749882635718,-781.18,0.00021095,4]
[365756177,1749882635727,-460.0,0.00021095,4]
[365756178,1749882635736,-460.0,0.00021095,4]
[365756179,1749882635744,-460.0,0.00021095,4]
[365756180,1749882635753,-460.0,0.00021095,4]
[365756181,1749882635763,-432.67713245,0.00021095,4]
[365756182,1749882635772,-460.0,0.00021095,4]
[365756183,1749882635781,-460.0,0.00021095,4]
[365756184,1749882635790,-460.0,0.00021095,4]
[365756185,1749882635799,-458.78911488,0.00021095,4]
[365756186,1749882635808,-430.0,0.00021095,4]
[365756187,1749882635817,-460.0,0.00021095,2]
[365756188,1749882635827,-460.0,0.00021095,4]
[365756189,1749882635836,-460.0,0.00021095,4]
[365756190,1749882635845,-415.18448536,0.00021095,4]
[365756191,1749882635854,-416.30234873,0.00021095,4]
[365756192,1749882635863,-460.0,0.00021095,4]
[365756193,1749882635871,-460.0,0.00021095,4]
[365756194,1749882635880,-443.61915476,0.00021095,4]
[365756195,1749882635890,-460.0,0.00021095,4]
[365756196,1749882635899,-461.81919041,0.00021095,4]
[365756197,1749882635908,-460.0,0.00021095,4]
[365756198,1749882635917,-460.0,0.00021095,4]
[365756199,1749882635926,-460.0,0.00021095,4]
[365756200,1749882635935,-460.0,0.00021095,4]
[365756201,1749882635944,-447.65934767,0.00021095,4]
[365756202,1749882635954,-460.0,0.00021095,4]
[365756203,1749882635973,-460.0,0.00021095,4]
[365756204,1749882635985,-460.0,0.00021095,4]
[365756205,1749882635995,-605.17,0.00021095,4]
[365756206,1749882636005,-460.0,0.00021095,4]
[365756207,1749882636015,-460.0,0.00021095,4]
[365756208,1749882636025,-400.0,0.00021095,4]
[365756209,1749882636035,-430.0,0.00021095,4]
[365756210,1749882636044,-422.1121022,0.00021095,4]
[365756211,1749882636054,-408.77794614,0.00021095,4]
[365756212,1749882636065,-698.27,0.00021095,4]
[365756213,1749882636074,-460.0,0.00021095,4]
[365756214,1749882636084,-417.91262611,0.00021095,4]
[365756215,1749882636094,-1000.0,0.00021095,4]
[365756216,1749882636104,-460.0,0.00021095,4]
[365756217,1749882636113,-366.8766893,0.00021095,4]
[365756218,1749882636123,-460.0,0.00021095,4]
[365756219,1749882636133,-460.0,0.00021095,4]
[365756220,1749882636143,-421.86746038,0.00021095,4]
[365756221,1749882636152,-483.99375695,0.00021095,4]
[365756222,1749882636162,-460.0,0.00021095,4]
[365756223,1749882636172,-430.0,0.00021095,4]
[365756224,1749882636182,-460.0,0.00021095,4]
[365756225,1749882636191,-460.0,0.00021095,4]
[365756226,1749882636203,-460.0,0.00021095,4]
[365756227,1749882636212,-460.0,0.00021095,4]
[365756228,1749882636221,-415.0693727,0.00021095,4]
[365756229,1749882636231,-798.56,0.00021095,4]
[365756230,1749882636241,-430.0,0.00021095,4]
[365756231,1749882636250,-460.0,0.00021095,4]
[365756232,1749882636260,-460.0,0.00021095,4]
[365756233,1749882636272,-3296.69,0.00021095,4]
[365756234,1749882636282,-399.16659689,0.00021095,4]
[365756235,1749882636291,-460.0,0.00021095,4]
[365756236,1749882636300,-460.0,0.00021095,4]
[365756237,1749882636310,-460.0,0.00021095,4]
[365756238,1749882636320,-460.0,0.00021095,4]
[365756239,1749882636329,-479.47978784,0.00021095,4]
[365756240,1749882636339,-460.0,0.00021095,4]
[365756241,1749882636350,-460.0,0.00021095,4]
[365756242,1749882636360,-460.0,0.00021095,4]
[365756243,1749882636370,-442.67115119,0.00021095,4]
[365756244,1749882636379,-430.0,0.00021095,4]
[365756245,1749882636389,-441.6864534,0.00021095,4]
[365756246,1749882636399,-615.77,0.00021095,4]
[365756247,1749882636409,-460.0,0.00021095,4]
[365756248,1749882636419,-413.26370949,0.00021095,4]
[365756249,1749882636429,-460.0,0.00021095,4]
[365756250,1749882636439,-460.0,0.00021095,4]
[365756251,1749882636449,-460.0,0.00021095,4]
[365756252,1749882636459,-460.0,0.00021095,4]
[365756253,1749882636468,-397.41074681,0.00021095,4]
[365756254,1749882636477,-460.0,0.00021095,4]
[365756255,1749882636487,-452.07993005,0.00021095,4]
[365756256,1749882636496,-460.0,0.00021095,4]
[365756257,1749882636505,-460.0,0.00021095,4]
[365756258,1749882636515,-460.0,0.00021095,4]
[365756259,1749882636524,-448.2435217,0.00021095,4]
[365756260,1749882636534,-460.0,0.00021095,4]
[365756261,1749882636543,-460.0,0.00021095,4]
[365756262,1749882636552,-460.0,0.00021095,4]
[365756263,1749882636561,-460.0,0.00021095,4]
[365756264,1749882636570,-460.0,0.00021095,4]
[365756265,1749882636579,-1145.05,0.00021095,4]
[365756266,1749882636593,-467.53244439,0.00021095,4]
[365756267,1749882636602,-460.0,0.00021095,4]
[365756268,1749882636612,-648.49,0.00021095,4]
[365756269,1749882636622,-460.0,0.00021095,4]
[365756270,1749882636632,-460.0,0.00021095,4]
[365756271,1749882636641,-460.0,0.00021095,4]
[365756272,1749882636650,-460.0,0.00021095,4]
[365756273,1749882636659,-460.0,0.00021095,4]
[365756274,1749882636669,-460.0,0.00021095,4]
[365756275,1749882636679,-1035.65,0.00021095,4]
[365756276,1749882636688,-460.0,0.00021095,4]
[365756277,1749882636698,-460.0,0.00021095,4]
[365756278,1749882636708,-361.44146629,0.00021095,4]
[365756279,1749882636717,-460.0,0.00021095,4]
[365756280,1749882636727,-460.0,0.00021095,4]
[365756281,1749882636737,-460.0,0.00021095,4]
[365756282,1749882636747,-460.0,0.00021095,4]
[365756283,1749882636757,-460.0,0.00021095,4]
[365756284,1749882636767,-417.16421749,0.00021095,4]
[365756285,1749882636777,-460.0,0.00021095,4]
[365756286,1749882636787,-457.29015729,0.00021095,4]
[365756287,1749882636797,-460.0,0.00021095,4]
[365756288,1749882636807,-460.0,0.00021095,4]
[365756289,1749882636817,-457.89900259,0.00021095,4]